Body Name,Service Code,Expenditure Category,Payment Date,Transaction Number,Supplier,Net Amount
Barrow Borough Council,Parks and open spaces,Grounds maintenance - other works,07-Jul-22,200055757,Tythe Barn Nurseries Ltd,"24,066.00"
Barrow Borough Council,Capitalised Planned Maintenance,Heating,28-Jul-22,200056011,Plumbing Trade Supplies,"1,965.32"
Barrow Borough Council,Information technology,Licences,07-Jul-22,200055680,Vodafone Ltd,"6,951.59"
Barrow Borough Council,Homelessness,Accommodation - homeless bed & breakfast,21-Jul-22,200055916,Redacted Information,875
Barrow Borough Council,Streetcare Team,Graffiti removal,07-Jul-22,200055743,Growing Concerns,805
Barrow Borough Council,Barrow BID,Professional fees,07-Jul-22,200055709,Liberata Uk Ltd,"2,332.90"
Barrow Borough Council,Capitalised Planned Maintenance,Doors and windows,21-Jul-22,200055926,Wrekin Windows,"1,094.64"
Barrow Borough Council,Corporate management,Professional fees,28-Jul-22,200056041,32West Ltd,"4,959.52"
Barrow Borough Council,The park leisure centre,Maintenance contracts - TSU,21-Jul-22,200055883,Phosters (FM) Ltd,"2,188.38"
Barrow Borough Council,"Chris McGlade ""Forgiveness""",Admissions,28-Jul-22,200056016,Playback Media Ltd,520
Barrow Borough Council,General grants,Other grants,21-Jul-22,200055902,Cumbria CVS,"5,000.00"
Barrow Borough Council,Customer services,Agency staff,21-Jul-22,200055908,James Andrews Recruitment Solutions,"1,069.38"
Barrow Borough Council,Current assets - stocks,Postage stock,21-Jul-22,200055923,Pitney Bowes Ltd,"4,042.09"
Barrow Borough Council,Free Spirit Academy - Once upon a Time 09.07.21,Hire of halls,21-Jul-22,200055969,Free Spirit Academy of Dance & Acrobatics Ltd,"-5,830.00"
Barrow Borough Council,Housing repairs control account,Housing repairs invoices,28-Jul-22,200056042,UK Environmental & Asbestos Solutions Ltd,550
Barrow Borough Council,Heritage Action Zone,Consultants' fees,07-Jul-22,200055738,Blackett-Ord Conservation Engineering,"1,950.00"
Barrow Borough Council,A - Dance Fusion,Hire of halls,07-Jul-22,200055737,Dance Fusion,"-1,467.75"
Barrow Borough Council,Housing repairs control account,Housing repairs invoices,21-Jul-22,200055921,Hughes Brothers,"19,830.75"
Barrow Borough Council,Forum 28,Water,28-Jul-22,200055973,Water Plus Ltd,"1,118.72"
Barrow Borough Council,The park leisure centre,Water,28-Jul-22,200055973,Water Plus Ltd,-961.7
Barrow Borough Council,Street cleansing,Street cleansing,07-Jul-22,200055706,FCC Environment Services (UK) Ltd,"51,767.74"
Barrow Borough Council,Housing Benefits Admin,Benefits council tenants,07-Jul-22,200055709,Liberata Uk Ltd,"2,660.94"
Barrow Borough Council,Disabled Facilities Grant,Grants,14-Jul-22,200055857,Dolphin Stairlifts Cumbria,"4,500.00"
Barrow Borough Council,Licensing,Solicitors fees,14-Jul-22,200055826,Brown Barron Solicitors,600
Barrow Borough Council,Shrek - Abbey Musical Society,Admissions,21-Jul-22,200055938,Abbey Musical Society,"8,489.00"
Barrow Borough Council,Democratic representation and management,Subscriptions,07-Jul-22,200055718,Suffolk County Council,665
Barrow Borough Council,Dock museum,Building cleaning,14-Jul-22,200055864,Elior UK Ltd,"1,801.43"
Barrow Borough Council,Customer services,Agency staff,14-Jul-22,200055842,James Andrews Recruitment Solutions,"1,405.26"
Barrow Borough Council,Housing repairs control account,Housing repairs invoices,14-Jul-22,200055820,Allison Construction,"20,037.48"
Barrow Borough Council,Dock museum,Gas,28-Jul-22,200056036,Corona Energy,"2,009.27"
Barrow Borough Council,Tenant demand maintenance - HRA,Disrepair,07-Jul-22,200055684,Progression Solicitors,775
Barrow Borough Council,Street cleansing,Street cleansing,07-Jul-22,200055726,Bell Brush,727
Barrow Borough Council,The park leisure centre,Consultants' fees,07-Jul-22,200055695,APSE,"1,505.70"
Barrow Borough Council,Housing Benefits Admin,Professional fees,14-Jul-22,200055789,Meritec Ltd,"12,025.00"
Barrow Borough Council,Finance Department,Agency staff,07-Jul-22,200055677,Penna Plc,"1,220.00"
Barrow Borough Council,Dock museum,Electricity,28-Jul-22,200055999,NPower,"2,998.21"
Barrow Borough Council,Planning Policy,Agency staff,07-Jul-22,200055693,The Oyster Partnership Ltd,976.56
Barrow Borough Council,The park leisure centre,Maintenance contracts - TSU,21-Jul-22,200055883,Phosters (FM) Ltd,562.5
Barrow Borough Council,Information technology,Agency staff,07-Jul-22,200055677,Penna Plc,"10,925.00"
Barrow Borough Council,Housing repairs control account,Housing repairs invoices,28-Jul-22,200056024,Handmark Engineering Co Ltd,988.76
Barrow Borough Council,Crematorium,Grounds maintenance - other works,21-Jul-22,200055961,Continental Landscapes Ltd,"1,481.15"
Barrow Borough Council,WAF Elections,Postage,07-Jul-22,200055768,Royal Mail,"1,392.50"
Barrow Borough Council,Disabled Facilities Grant,Grants,21-Jul-22,200055957,Ward Contracting Ltd,"5,246.27"
Barrow Borough Council,Footpath Lighting,Electricity,28-Jul-22,200055999,NPower,"3,643.68"
Barrow Borough Council,Waste collection,Consultants' fees,28-Jul-22,200055976,APSE,"21,109.44"
Barrow Borough Council,Streetcare Team,Consultants' fees,07-Jul-22,200055695,APSE,"5,100.55"
Barrow Borough Council,A - Kreativ Dance,Hire of halls,21-Jul-22,200055917,Kreativ Dance,"-2,356.25"
Barrow Borough Council,RTB administration - HRA,Professional fees,28-Jul-22,200055985,Lambert Smith Hampton,"4,550.00"
Barrow Borough Council,Homelessness,Homeless support funding,14-Jul-22,200055793,Cumbria Community Homes,"14,613.71"
Barrow Borough Council,Housing Benefits Admin,Professional fees,07-Jul-22,200055724,Andy Thurman Ltd,"2,600.00"
Barrow Borough Council,Major works maintenance - HRA,Communal entrances,28-Jul-22,200056009,George Jones & Son (Contractors) Ltd,838.54
Barrow Borough Council,Information technology,Software maintenance,21-Jul-22,200055942,Satisnet,"4,153.57"
Barrow Borough Council,Tenant demand maintenance - HRA,Gas works,14-Jul-22,200055852,Sure Maintenance,"2,722.96"
Barrow Borough Council,Capitalised Planned Maintenance,Heating,21-Jul-22,200055920,Sure Maintenance,"11,289.40"
Barrow Borough Council,Disabled Facilities Grant,Grants,21-Jul-22,200055927,Dolphin Stairlifts Cumbria,"4,825.00"
Barrow Borough Council,Capitalised Planned Maintenance,Heating,21-Jul-22,200055956,Plumbing Trade Supplies,"3,955.16"
Barrow Borough Council,Streetcare Team,Consultants' fees,07-Jul-22,200055695,APSE,"13,678.40"
Barrow Borough Council,Barrow park,Gas,14-Jul-22,200055837,Continental Landscapes Ltd,578.05
Barrow Borough Council,Heritage Action Zone,Solicitors fees,28-Jul-22,200056007,Brown Barron Solicitors,792
Barrow Borough Council,Customer services,Agency staff,14-Jul-22,200055842,James Andrews Recruitment Solutions,"1,405.26"
Barrow Borough Council,Customer services,Agency staff,07-Jul-22,200055701,James Andrews Recruitment Solutions,"1,379.31"
Barrow Borough Council,Disabled Facilities Grant,Grants,28-Jul-22,200056003,TK Access Solutions Ltd,"4,390.00"
Barrow Borough Council,The park leisure centre,Consultants' fees,07-Jul-22,200055695,APSE,"2,920.51"
Barrow Borough Council,Forum 28,Maintenance contracts - TSU,28-Jul-22,200056028,Phosters (FM) Ltd,"1,204.88"
Barrow Borough Council,Democratic representation and management,CGR,21-Jul-22,200055890,Tim Leader,600
Barrow Borough Council,Cemeteries,Grounds maintenance - schedule of works,21-Jul-22,200055961,Continental Landscapes Ltd,"11,977.95"
Barrow Borough Council,Disabled Facilities Grant,Grants,07-Jul-22,200055772,Dolphin Stairlifts Cumbria,"2,170.00"
Barrow Borough Council,Voids maintenance - HRA,Void repairs,07-Jul-22,200055715,Hughes Brothers,"2,750.43"
Barrow Borough Council,Registration of electors,Computer hardware maintenance,21-Jul-22,200055914,The Document Management Group Ltd,650
Barrow Borough Council,Disabled Facilities Grant,Grants,28-Jul-22,200056035,Horrocks (NorthWest) Ltd,"1,620.00"
Barrow Borough Council,Sports development and community recreation,Maintenance contracts - TSU,21-Jul-22,200055883,Phosters (FM) Ltd,642.3
Barrow Borough Council,The park leisure centre,Consultants' fees,07-Jul-22,200055695,APSE,"4,492.00"
Barrow Borough Council,Forum 28,Maintenance contracts - TSU,28-Jul-22,200055995,GEZE UK Ltd,"1,574.72"
Barrow Borough Council,Major works maintenance - HRA,Shop repairs,14-Jul-22,200055820,Allison Construction,"75,967.63"
Barrow Borough Council,A - Kreativ Dance,Recoverable charges,21-Jul-22,200055917,Kreativ Dance,"-1,271.16"
Barrow Borough Council,Cyclical maintenance - HRA,Painting,07-Jul-22,200055758,George Jones & Son (Contractors) Ltd,"4,491.21"
Barrow Borough Council,Office support - admin,Agency staff,07-Jul-22,200055701,James Andrews Recruitment Solutions,"1,479.26"
Barrow Borough Council,Voids maintenance - HRA,Void repairs,14-Jul-22,200055853,Hughes Brothers,"7,812.13"
Barrow Borough Council,The park leisure centre,Water,14-Jul-22,200055814,Water Plus Ltd,961.7
Barrow Borough Council,Planning Policy,Agency staff,14-Jul-22,200055816,The Oyster Partnership Ltd,610.35
Barrow Borough Council,Cost of collection,Council tax collection,07-Jul-22,200055709,Liberata Uk Ltd,"9,095.54"
Barrow Borough Council,Disabled Facilities Grant,Grants,14-Jul-22,200055857,Dolphin Stairlifts Cumbria,"4,870.00"
Barrow Borough Council,Harding Rise Business Centre,Electricity,28-Jul-22,200055999,NPower,"2,450.61"
Barrow Borough Council,The park leisure centre,Consultants' fees,07-Jul-22,200055695,APSE,"1,827.00"
Barrow Borough Council,HRA Estates,Tenants Water Charges,21-Jul-22,200055910,United Utilities Water Ltd,"193,993.73"
Barrow Borough Council,Information technology,Computer hardware maintenance,28-Jul-22,200056032,Proact IT UK Ltd,"1,585.00"
Barrow Borough Council,Capitalised Planned Maintenance,Rewires,07-Jul-22,200055759,Keith Wilson Elec Con Ltd,"5,793.62"
Barrow Borough Council,Disabled Facilities Grant,Grants,07-Jul-22,200055742,TK Access Solutions Ltd,930
Barrow Borough Council,Forum 28,Building cleaning,28-Jul-22,200055997,Elior UK Ltd,"3,347.97"
Barrow Borough Council,Customer services,Agency staff,21-Jul-22,200055908,James Andrews Recruitment Solutions,619.69
Barrow Borough Council,Ian Waite & Vincent Simone 19.06.22,Professional fees,07-Jul-22,200055722,Strictly Theatre Co,"4,853.24"
Barrow Borough Council,Capitalised Planned Maintenance,Doors and windows,21-Jul-22,200055901,Richmond Joiners & Builders Ltd,547.68
Barrow Borough Council,Office support - admin,Photocopier rental,07-Jul-22,200055733,Ricoh UK Ltd,941.94
Barrow Borough Council,Technical services,Consultants' fees,07-Jul-22,200055761,Bob Pedley Safety Services,"3,846.00"
Barrow Borough Council,The park leisure centre,Consultants' fees,07-Jul-22,200055695,APSE,"5,315.00"
Barrow Borough Council,Ladyboys of Bangkok,Professional fees,21-Jul-22,200055932,Exchange Events Ltd,"5,253.16"
Barrow Borough Council,Voids maintenance - HRA,Void repairs,14-Jul-22,200055853,Hughes Brothers,"15,744.83"
Barrow Borough Council,Waste collection,Refuse collection - contract,07-Jul-22,200055706,FCC Environment Services (UK) Ltd,"63,863.18"
Barrow Borough Council,Voids maintenance - HRA,Agency staff,28-Jul-22,200055974,Teem Recruitment Ltd,618.75
Barrow Borough Council,HRA Property inspectors,Equipment purchase,07-Jul-22,200055687,ACS Business Supplies Ltd,"3,198.06"
Barrow Borough Council,Barrow town hall,Maintenance contracts - TSU,14-Jul-22,200055827,Bill Caulfield Electrical,"2,436.00"
Barrow Borough Council,Information technology,Data Line Rental,21-Jul-22,200055887,Vodafone Ltd,783
Barrow Borough Council,Joel Dommett 05.03.21,Professional fees,07-Jul-22,200055777,Off The Kerb Productions,"5,366.55"
Barrow Borough Council,Customer services,Agency staff,07-Jul-22,200055701,James Andrews Recruitment Solutions,"1,141.88"
Barrow Borough Council,The park leisure centre,Water,28-Jul-22,200055973,Water Plus Ltd,829.15
Barrow Borough Council,HRA administration,Management training,14-Jul-22,200055817,David Ganz Associates Ltd,562.5
Barrow Borough Council,Town Deal - Marina Village,Professional fees,14-Jul-22,200055833,Electricity North West Ltd,"3,567.61"
Barrow Borough Council,Low Carbon Barrow,Solicitors fees,14-Jul-22,200055826,Brown Barron Solicitors,953
Barrow Borough Council,Capitalised Planned Maintenance,Roofs,28-Jul-22,200055996,DLP Services (Northern) Ltd,"30,008.36"
Barrow Borough Council,Tenant demand maintenance - HRA,Gas works,14-Jul-22,200055852,Sure Maintenance,"6,165.34"
Barrow Borough Council,Capitalised Planned Maintenance,Roofs,14-Jul-22,200055845,SIG Trading Ltd,"1,107.49"
Barrow Borough Council,Barrow park,Buildings repairs and maintenance,14-Jul-22,200055853,Hughes Brothers,"1,206.64"
Barrow Borough Council,Capitalised Planned Maintenance,Doors and windows,21-Jul-22,200055901,Richmond Joiners & Builders Ltd,"1,354.88"
Barrow Borough Council,Tenant demand maintenance - HRA,Disrepair,28-Jul-22,200056037,Progression Solicitors,"2,144.82"
Barrow Borough Council,Barrow park,Grounds maintenance - other works,28-Jul-22,200056012,Peter H Smith Limited,738.25
Barrow Borough Council,Cyclical maintenance - HRA,Electrical testing,21-Jul-22,200055955,Keith Wilson Elec Con Ltd,"5,314.46"
Barrow Borough Council,The park leisure centre,Consultants' fees,07-Jul-22,200055695,APSE,"3,885.00"
Barrow Borough Council,Forum catering,Catering contract - Forum,21-Jul-22,200055930,Elior UK Ltd,736.92
Barrow Borough Council,Customer services,Agency staff,07-Jul-22,200055701,James Andrews Recruitment Solutions,"1,405.26"
Barrow Borough Council,Capitalised Planned Maintenance,Doors and windows,21-Jul-22,200055926,Wrekin Windows,"27,064.97"
Barrow Borough Council,Barrow town hall,Gas,28-Jul-22,200056036,Corona Energy,"2,946.20"
Barrow Borough Council,Tenant demand maintenance - HRA,Gas works,07-Jul-22,200055714,Sure Maintenance,"2,849.36"
Barrow Borough Council,A - Kreativ Dance,Admissions,21-Jul-22,200055917,Kreativ Dance,"8,143.50"
Barrow Borough Council,Recycling,Recycling collection and processing,07-Jul-22,200055706,FCC Environment Services (UK) Ltd,"41,416.30"
Barrow Borough Council,Capitalised Planned Maintenance,Doors and windows,21-Jul-22,200055901,Richmond Joiners & Builders Ltd,"2,890.15"
Barrow Borough Council,The markets,Maintenance contracts - TSU,21-Jul-22,200055883,Phosters (FM) Ltd,997.23
Barrow Borough Council,Housing repairs control account,Housing repairs invoices,07-Jul-22,200055770,Howdens Joinery Ltd,"1,488.89"
Barrow Borough Council,Estates management,Solicitors fees,28-Jul-22,200056007,Brown Barron Solicitors,760.25
Barrow Borough Council,Salthouse Road Depot,Electricity,28-Jul-22,200055999,NPower,"1,213.79"
Barrow Borough Council,Forum catering,Catering contract - Forum,21-Jul-22,200055930,Elior UK Ltd,"2,808.23"
Barrow Borough Council,Voids maintenance - HRA,Void repairs,21-Jul-22,200055921,Hughes Brothers,"3,300.80"
Barrow Borough Council,Office support - admin,Photocopying charges,07-Jul-22,200055733,Ricoh UK Ltd,694.71
Barrow Borough Council,Pollution,Professional training,28-Jul-22,200056001,CIEH,613
Barrow Borough Council,Capitalised Planned Maintenance,Heating,21-Jul-22,200055956,Plumbing Trade Supplies,"2,971.15"
Barrow Borough Council,Tenant demand maintenance - HRA,Routine Maintenance,07-Jul-22,200055729,Cumbria Roofing Ulverston,"2,164.00"
Barrow Borough Council,The park leisure centre,Gas,07-Jul-22,200055673,TED Generation 1 Ltd,"2,619.55"
Barrow Borough Council,Housing repairs control account,Housing repairs invoices,07-Jul-22,200055770,Howdens Joinery Ltd,"1,311.02"
Barrow Borough Council,Cyclical maintenance - HRA,Painting,21-Jul-22,200055954,George Jones & Son (Contractors) Ltd,"12,228.55"
Barrow Borough Council,Homeless families and dispersed accommodation - HRA,Furniture - dispersed accommodation,07-Jul-22,200055748,Furniture Resource Centre,"2,279.78"
Barrow Borough Council,The markets,Electricity,28-Jul-22,200055999,NPower,"2,090.77"
Barrow Borough Council,Barrow town hall,Buildings repairs and maintenance,21-Jul-22,200055944,FTS Fire & Secuirty Ltd,622.5
Barrow Borough Council,Streetcare Team,Consultants' fees,07-Jul-22,200055695,APSE,"2,800.00"
Barrow Borough Council,Capitalised Planned Maintenance,Roofs,28-Jul-22,200055984,SIG Trading Ltd,"2,021.57"
Barrow Borough Council,Capitalised Planned Maintenance,Heating,21-Jul-22,200055956,Plumbing Trade Supplies,"6,755.50"
Barrow Borough Council,Barrow town hall,Building cleaning,07-Jul-22,200055775,Associated Cleaning Contractors,592.8
Barrow Borough Council,Crematorium,Maintenance contracts - venue,07-Jul-22,200055774,PJ Combustions Solutions Ltd,843
Barrow Borough Council,Homelessness,Homeless support funding,28-Jul-22,200056030,Cumbria Community Homes,"10,960.05"
Barrow Borough Council,The park leisure centre,Buildings repairs and maintenance,21-Jul-22,200055960,Optech Fibres,"1,330.00"
Barrow Borough Council,Craven house,Electricity,28-Jul-22,200055999,NPower,"13,589.55"
Barrow Borough Council,A - Dance Fusion,Admissions,07-Jul-22,200055737,Dance Fusion,"4,149.00"
Barrow Borough Council,Housing Benefits Admin,Software maintenance,07-Jul-22,200055678,NEC Software Solutions UK Ltd,"3,060.00"
Barrow Borough Council,Dock museum,Maintenance contracts - TSU,28-Jul-22,200056028,Phosters (FM) Ltd,625.97
Barrow Borough Council,Information technology,Agency staff,28-Jul-22,200056031,VennGroup Recruitment,"1,260.65"
Barrow Borough Council,Cyclical maintenance - HRA,Painting,07-Jul-22,200055758,George Jones & Son (Contractors) Ltd,"1,620.00"
Barrow Borough Council,Waste collection,Abandoned cars,14-Jul-22,200055854,Furness Cars & Commercials Ltd,535
Barrow Borough Council,Housing repairs control account,Housing repairs invoices,28-Jul-22,200056042,UK Environmental & Asbestos Solutions Ltd,850
Barrow Borough Council,Crematorium,Chemicals,21-Jul-22,200055970,Blend-i-Pack Ltd,"5,800.00"
Barrow Borough Council,Dock museum,Maintenance contracts - TSU,21-Jul-22,200055883,Phosters (FM) Ltd,"1,757.91"
Barrow Borough Council,Public conveniences,Building cleaning,07-Jul-22,200055743,Growing Concerns,"3,531.17"
Barrow Borough Council,Cemeteries,Grounds maintenance - other works,21-Jul-22,200055961,Continental Landscapes Ltd,"4,748.99"
Barrow Borough Council,Local Council Tax Reduction Scheme (LCTRS),LCTRS Admin,07-Jul-22,200055709,Liberata Uk Ltd,"9,095.54"
Barrow Borough Council,Disabled Facilities Grant,Grants,14-Jul-22,200055870,Prism Medical UK Ltd,625
Barrow Borough Council,Disabled Facilities Grant,Grants,07-Jul-22,200055735,Lee Bowron Glazing Ltd,"5,701.50"
Barrow Borough Council,Forum 28,Gas,28-Jul-22,200056036,Corona Energy,"4,371.54"
Barrow Borough Council,Housing repairs control account,Housing repairs invoices,07-Jul-22,200055715,Hughes Brothers,"27,346.18"
Barrow Borough Council,Free Spirit Academy - Once upon a Time 09.07.21,Recoverable charges,21-Jul-22,200055969,Free Spirit Academy of Dance & Acrobatics Ltd,"-2,322.97"
Barrow Borough Council,Waste collection,Refuse & Recycling Bins Boxes & Bags,14-Jul-22,200055846,FCC Environment Services (UK) Ltd,849.68
Barrow Borough Council,Parks and open spaces,Grounds maintenance - other works,14-Jul-22,200055837,Continental Landscapes Ltd,"2,307.23"
Barrow Borough Council,Major works maintenance - HRA,Communal entrances,28-Jul-22,200056009,George Jones & Son (Contractors) Ltd,838.54
Barrow Borough Council,Capitalised Planned Maintenance,Heating,21-Jul-22,200055956,Plumbing Trade Supplies,"7,075.07"
Barrow Borough Council,Future High Street Fund,Solicitors fees,14-Jul-22,200055826,Brown Barron Solicitors,600
Barrow Borough Council,Information technology,Data Line Rental,07-Jul-22,200055745,CAE Technology Services,"14,213.00"
Barrow Borough Council,Tenant demand maintenance - HRA,Consultancy fees,07-Jul-22,200055746,Richard Coates Quantity Surveyor,"3,731.46"
Barrow Borough Council,Craven house,Building cleaning,07-Jul-22,200055775,Associated Cleaning Contractors,645.26
Barrow Borough Council,Voids maintenance - HRA,Void repairs,21-Jul-22,200055921,Hughes Brothers,"15,277.60"
Barrow Borough Council,Corporate management,Solicitors fees,07-Jul-22,200055756,Brown Barron Solicitors,"1,075.00"
Barrow Borough Council,Telephones Holding A/C,Telephone charges paid,21-Jul-22,200055887,Vodafone Ltd,522.82
Barrow Borough Council,A - Dance Fusion,Recoverable charges,07-Jul-22,200055737,Dance Fusion,-998.67
Barrow Borough Council,Capitalised Planned Maintenance,Roofs,28-Jul-22,200055984,SIG Trading Ltd,"8,390.39"
Barrow Borough Council,Barrow park,Water,14-Jul-22,200055814,Water Plus Ltd,750.68
Barrow Borough Council,Off street car parking,Building cleaning,07-Jul-22,200055743,Growing Concerns,564.87
Barrow Borough Council,Housing repairs control account,Housing repairs invoices,28-Jul-22,200056015,Howdens Joinery Ltd,"1,631.44"
Barrow Borough Council,Crematorium,Gas,28-Jul-22,200056036,Corona Energy,"9,576.81"
Barrow Borough Council,Voids maintenance - HRA,Void repairs,21-Jul-22,200055921,Hughes Brothers,"13,595.59"
Barrow Borough Council,Voids maintenance - HRA,Void repairs,14-Jul-22,200055853,Hughes Brothers,"3,110.83"
Barrow Borough Council,Allotments,Water,14-Jul-22,200055814,Water Plus Ltd,991.23
Barrow Borough Council,Capitalised Planned Maintenance,Doors and windows,21-Jul-22,200055901,Richmond Joiners & Builders Ltd,962.69
Barrow Borough Council,Development control,Agency staff,07-Jul-22,200055685,G2 Recruitment Solutions,"1,427.81"
Barrow Borough Council,Suspense accounts,Income suspense account,21-Jul-22,200055879,Mears Ltd,"2,987.44"
Barrow Borough Council,Parks and open spaces,Grounds maintenance - schedule of works,14-Jul-22,200055837,Continental Landscapes Ltd,"34,730.40"
Barrow Borough Council,The markets,Buildings repairs and maintenance,14-Jul-22,200055853,Hughes Brothers,566.22
Barrow Borough Council,The park leisure centre,Water,28-Jul-22,200055973,Water Plus Ltd,803.05
Barrow Borough Council,Forum 28,Maintenance contracts - TSU,21-Jul-22,200055883,Phosters (FM) Ltd,"2,991.66"
Barrow Borough Council,Food safety,Professional fees,28-Jul-22,200056025,Vivid Resourcing,"1,178.00"
Barrow Borough Council,Housing repairs control account,Housing repairs invoices,07-Jul-22,200055770,Howdens Joinery Ltd,922.29
Barrow Borough Council,Customer services,Agency staff,14-Jul-22,200055842,James Andrews Recruitment Solutions,"1,479.26"
Barrow Borough Council,Barrow town hall,Building cleaning,07-Jul-22,200055775,Associated Cleaning Contractors,"4,682.93"
Barrow Borough Council,Housing repairs control account,Housing repairs invoices,07-Jul-22,200055715,Hughes Brothers,"19,611.13"
Barrow Borough Council,Homelessness,Accommodation - homeless bed & breakfast,21-Jul-22,200055916,Redacted Information,"1,154.17"
Barrow Borough Council,Housing repairs control account,Housing repairs invoices,28-Jul-22,200056042,UK Environmental & Asbestos Solutions Ltd,825
Barrow Borough Council,Development control,Listed buildings grant,21-Jul-22,200055876,Redacted Information,"2,000.00"
Barrow Borough Council,Barrow park,Grounds maintenance - schedule of works,14-Jul-22,200055837,Continental Landscapes Ltd,"23,544.08"
Barrow Borough Council,Crematorium,Electricity,28-Jul-22,200055999,NPower,"2,209.09"
Barrow Borough Council,Current assets - stocks,Museum stock,28-Jul-22,200055992,House of Marbles,707.6
Barrow Borough Council,Forum catering,Catering contract - Forum,21-Jul-22,200055930,Elior UK Ltd,820.25
Barrow Borough Council,Customer services,Agency staff,28-Jul-22,200055981,James Andrews Recruitment Solutions,"1,405.26"
Barrow Borough Council,Customer services,Agency staff,21-Jul-22,200055908,James Andrews Recruitment Solutions,"1,405.26"
Barrow Borough Council,Capitalised Planned Maintenance,Rewires,21-Jul-22,200055919,Rexel UK Ltd,"1,805.04"
Barrow Borough Council,Housing repairs control account,Housing repairs invoices,14-Jul-22,200055853,Hughes Brothers,"29,618.57"
Barrow Borough Council,Free Spirit Academy - Once upon a Time 09.07.21,Admissions,21-Jul-22,200055969,Free Spirit Academy of Dance & Acrobatics Ltd,"14,892.00"
Barrow Borough Council,Coast protection,Grounds maintenance - other works,21-Jul-22,200055903,Ashlea Ltd,653.94
Barrow Borough Council,Barrow town hall,Maintenance contracts - TSU,28-Jul-22,200056028,Phosters (FM) Ltd,626.86
Barrow Borough Council,Capitalised Planned Maintenance,Heating,21-Jul-22,200055956,Plumbing Trade Supplies,"8,296.58"
Barrow Borough Council,Disabled Facilities Grant,Grants,21-Jul-22,200055933,Lee Bowron Glazing Ltd,"6,150.00"
Barrow Borough Council,Capitalised Planned Maintenance,Heating,21-Jul-22,200055920,Sure Maintenance,"7,310.44"
Barrow Borough Council,The park leisure centre,Electricity,28-Jul-22,200055999,NPower,"6,229.70"
Barrow Borough Council,Current assets - payments in advance,Payment in advance - GF,21-Jul-22,200055942,Satisnet,"4,153.56"
Barrow Borough Council,Housing repairs control account,Housing repairs invoices,28-Jul-22,200056042,UK Environmental & Asbestos Solutions Ltd,875
Barrow Borough Council,Capitalised Planned Maintenance,Heating,07-Jul-22,200055760,Plumbing Trade Supplies,"6,182.51"
Barrow Borough Council,Harding Rise Business Centre,Building cleaning,07-Jul-22,200055775,Associated Cleaning Contractors,793.33
Barrow Borough Council,Playground,Parks & Playgrounds Repairs & Maintenance,14-Jul-22,200055837,Continental Landscapes Ltd,"3,618.24"
Barrow Borough Council,Disabled Facilities Grant,Grants,21-Jul-22,200055927,Dolphin Stairlifts Cumbria,"2,320.00"
Barrow Borough Council,Tenant demand maintenance - HRA,Gas works,14-Jul-22,200055852,Sure Maintenance,"15,050.90"
Barrow Borough Council,Coast protection,Buildings repairs and maintenance,14-Jul-22,200055853,Hughes Brothers,820.15
Barrow Borough Council,Voids maintenance - HRA,Void repairs,28-Jul-22,200055987,Hughes Brothers,"5,430.11"
Barrow Borough Council,Homelessness,Computer software purchase,14-Jul-22,200055797,Locata Housing Services,"8,000.00"
Barrow Borough Council,Off street car parking,Professional fees,28-Jul-22,200056040,PARK NOW Ltd,787.18
Barrow Borough Council,Estates management,Maintenance contracts - TSU,21-Jul-22,200055883,Phosters (FM) Ltd,523.98
Barrow Borough Council,Democratic representation and management,CGR,14-Jul-22,200055792,Samantha Bagshaw,"1,428.00"
Barrow Borough Council,Planning Policy,Countryside management,07-Jul-22,200055762,Cumbria Wildlife Trust,"1,600.00"
Barrow Borough Council,Housing repairs control account,Housing repairs invoices,14-Jul-22,200055824,Wilko Retail Ltd,"1,260.00"
Barrow Borough Council,Off street car parking,Electricity,28-Jul-22,200055999,NPower,915.1
Barrow Borough Council,Housing repairs control account,Housing repairs invoices,28-Jul-22,200056042,UK Environmental & Asbestos Solutions Ltd,875
Barrow Borough Council,Information technology,Agency staff,21-Jul-22,200055889,VennGroup Recruitment,"1,260.65"
Barrow Borough Council,Housing repairs control account,Housing repairs invoices,14-Jul-22,200055828,Keith Wilson Elec Con Ltd,"1,269.97"
Barrow Borough Council,Shrek - Abbey Musical Society,Hire of halls,21-Jul-22,200055938,Abbey Musical Society,"-1,661.00"
Barrow Borough Council,Streetcare Team,Consultants' fees,07-Jul-22,200055695,APSE,"10,262.95"
Barrow Borough Council,Estates management,Buildings repairs and maintenance,28-Jul-22,200055979,Allison Construction,"4,000.00"
Barrow Borough Council,Voids maintenance - HRA,Void repairs,21-Jul-22,200055921,Hughes Brothers,"2,807.05"
Barrow Borough Council,Planning Policy,Professional fees,28-Jul-22,200055975,The Oyster Partnership Ltd,"1,220.70"
Barrow Borough Council,Food safety,Consultants' fees,14-Jul-22,200055785,Vivid Resourcing,620
Barrow Borough Council,Disabled Facilities Grant,Grants,07-Jul-22,200055772,Dolphin Stairlifts Cumbria,"4,625.00"
Barrow Borough Council,Housing repairs control account,Housing repairs invoices,07-Jul-22,200055759,Keith Wilson Elec Con Ltd,693.85
Barrow Borough Council,Legal,Solicitors fees,14-Jul-22,200055826,Brown Barron Solicitors,550.5
Barrow Borough Council,Waste collection,Consultants' fees,07-Jul-22,200055695,APSE,"15,907.50"
Barrow Borough Council,Streetcare Team,Consultants' fees,07-Jul-22,200055695,APSE,"9,937.00"
Barrow Borough Council,The park leisure centre,Gas,28-Jul-22,200056036,Corona Energy,"18,161.72"
Barrow Borough Council,Tenant demand maintenance - HRA,Central overheads,07-Jul-22,200055715,Hughes Brothers,"28,550.68"
Barrow Borough Council,Emergency planning,Contain Outbreak Management Fund,28-Jul-22,200056041,32West Ltd,"2,156.00"
Barrow Borough Council,Development control,Agency staff,14-Jul-22,200055808,G2 Recruitment Solutions,"1,751.25"
Barrow Borough Council,Information technology,Agency staff,07-Jul-22,200055675,VennGroup Recruitment,"1,008.52"
Barrow Borough Council,Information technology,Software maintenance,28-Jul-22,200056033,Zendesk,"2,880.00"
Barrow Borough Council,Housing repairs control account,Housing repairs invoices,28-Jul-22,200056042,UK Environmental & Asbestos Solutions Ltd,"1,575.00"
Barrow Borough Council,Barrow town hall,Planned Building repairs and maintenance,21-Jul-22,200055953,Bill Caulfield Electrical,"2,214.26"
Barrow Borough Council,Waste collection,Consultants' fees,07-Jul-22,200055695,APSE,"2,242.80"
Barrow Borough Council,Disabled Facilities Grant,Grants,14-Jul-22,200055870,Prism Medical UK Ltd,"4,612.66"
Barrow Borough Council,Disabled Facilities Grant,Grants,14-Jul-22,200055868,Lee Bowron Glazing Ltd,"5,300.00"
Barrow Borough Council,Capitalised Planned Maintenance,Rewires,07-Jul-22,200055712,Rexel UK Ltd,"1,702.28"
Barrow Borough Council,The park leisure centre,Buildings repairs and maintenance,14-Jul-22,200055853,Hughes Brothers,695.12
Barrow Borough Council,Waste collection,Refuse collection - other works,14-Jul-22,200055846,FCC Environment Services (UK) Ltd,"1,900.80"
Barrow Borough Council,Dock museum,Museum exhibition,14-Jul-22,200055799,Greg Book Advisory,"2,220.42"
Barrow Borough Council,Information technology,Agency staff,21-Jul-22,200055889,VennGroup Recruitment,"1,260.65"
Barrow Borough Council,Photocopiers Holding A/C,Photocopier charges paid,07-Jul-22,200055733,Ricoh UK Ltd,547.66
Barrow Borough Council,WAF Elections,Postage,07-Jul-22,200055704,Democracy Counts Ltd,"5,774.50"
Barrow Borough Council,Town Hall catering,Catering contract - town hall,28-Jul-22,200055997,Elior UK Ltd,552.9
Barrow Borough Council,HRA Estates,Cleaning - other,14-Jul-22,200055860,Associated Cleaning Contractors,"4,266.17"
Barrow Borough Council,Housing repairs control account,Housing repairs invoices,14-Jul-22,200055858,PJ Smith (Garafix) Ltd,935
Barrow Borough Council,Craven house,Water,07-Jul-22,200055692,Water Plus Ltd,"1,203.69"
Barrow Borough Council,Registration of electors,Postage,28-Jul-22,200055986,Democracy Counts Ltd,"13,395.94"
Barrow Borough Council,Finance Department,Professional fees,21-Jul-22,200055909,Lambert Smith Hampton,"33,000.00"
Barrow Borough Council,Planning Policy,Agency staff,07-Jul-22,200055693,The Oyster Partnership Ltd,"1,220.70"
Barrow Borough Council,Housing repairs control account,Housing repairs invoices,28-Jul-22,200056042,UK Environmental & Asbestos Solutions Ltd,875
Barrow Borough Council,Waste collection,Refuse & Recycling Bins Boxes & Bags,07-Jul-22,200055740,Craemer UK Ltd,"8,650.00"
Barrow Borough Council,The park leisure centre,Consultants' fees,07-Jul-22,200055695,APSE,945
Barrow Borough Council,The park leisure centre,Consultants' fees,07-Jul-22,200055695,APSE,"4,310.00"
Barrow Borough Council,The park leisure centre,Consultants' fees,07-Jul-22,200055695,APSE,"6,779.28"
Barrow Borough Council,Capitalised Planned Maintenance,Doors and windows,21-Jul-22,200055926,Wrekin Windows,"2,808.60"
Barrow Borough Council,Capitalised Planned Maintenance,Roofs,14-Jul-22,200055845,SIG Trading Ltd,651.03
Barrow Borough Council,Capitalised Planned Maintenance,Doors and windows,21-Jul-22,200055901,Richmond Joiners & Builders Ltd,"4,352.80"
Barrow Borough Council,Homelessness,Homeless support funding,14-Jul-22,200055806,Sorella Group Ltd,800
Barrow Borough Council,Housing repairs control account,Housing repairs invoices,28-Jul-22,200056042,UK Environmental & Asbestos Solutions Ltd,"2,300.00"
Barrow Borough Council,Tenant demand maintenance - HRA,Disrepair,07-Jul-22,200055684,Progression Solicitors,"1,775.00"
Barrow Borough Council,Barrow Town Deal,Solicitors fees,14-Jul-22,200055826,Brown Barron Solicitors,"1,431.50"
Barrow Borough Council,Barrow town hall,Electricity,28-Jul-22,200055999,NPower,"4,350.65"
Barrow Borough Council,Forum catering,Catering contract - Forum,21-Jul-22,200055930,Elior UK Ltd,-820.25
Barrow Borough Council,Voids maintenance - HRA,Void repairs,14-Jul-22,200055853,Hughes Brothers,"4,196.33"
Barrow Borough Council,Marina Village,Professional fees,21-Jul-22,200055886,Eunomia Research & Consulting Ltd,"10,878.00"
Barrow Borough Council,Heritage Action Zone,Equipment purchase,07-Jul-22,200055728,Sign Cast,645
Barrow Borough Council,Capitalised Planned Maintenance,Doors and windows,21-Jul-22,200055891,Nova Group Ltd,"3,354.59"
Barrow Borough Council,Major works maintenance - HRA,Communal entrances,28-Jul-22,200056009,George Jones & Son (Contractors) Ltd,838.54
Barrow Borough Council,Capitalised Planned Maintenance,Rewires,21-Jul-22,200055955,Keith Wilson Elec Con Ltd,"7,736.96"
Barrow Borough Council,Waste collection,Consultants' fees,07-Jul-22,200055695,APSE,"3,780.00"
Barrow Borough Council,Information technology,Professional fees,21-Jul-22,200055907,Britannic Technologies Ltd,"18,261.08"
Barrow Borough Council,Waste collection,Refuse & Recycling Bins Boxes & Bags,14-Jul-22,200055846,FCC Environment Services (UK) Ltd,661.77
Barrow Borough Council,Capitalised Planned Maintenance,Doors and windows,21-Jul-22,200055891,Nova Group Ltd,"2,581.58"
Barrow Borough Council,Food safety,Professional fees,14-Jul-22,200055785,Vivid Resourcing,682
Barrow Borough Council,Development control,Listed buildings grant,21-Jul-22,200055878,Redacted Information,"1,000.00"
Barrow Borough Council,Housing Benefits Admin,Benefits private tenants,07-Jul-22,200055709,Liberata Uk Ltd,"7,522.64"
Barrow Borough Council,Customer services,Agency staff,14-Jul-22,200055842,James Andrews Recruitment Solutions,"1,341.25"
Barrow Borough Council,Customer services,Agency staff,07-Jul-22,200055701,James Andrews Recruitment Solutions,"1,323.13"
Barrow Borough Council,Development control,Solicitors fees,07-Jul-22,200055679,Mr Wilson Horne,"1,500.00"
Barrow Borough Council,Major works maintenance - HRA,Shop repairs,07-Jul-22,200055739,Chris Bugler,"1,520.00"
Barrow Borough Council,Waste collection,Refuse collection - other works,14-Jul-22,200055846,FCC Environment Services (UK) Ltd,"1,900.80"
Barrow Borough Council,Housing repairs control account,Housing repairs invoices,07-Jul-22,200055770,Howdens Joinery Ltd,"1,269.39"
Barrow Borough Council,Josh Widdicombe 31.03.21,Professional fees,28-Jul-22,200055993,Off The Kerb Productions,"6,768.63"
Barrow Borough Council,Forum catering,Catering contract - Forum,14-Jul-22,200055864,Elior UK Ltd,"2,633.44"
Barrow Borough Council,Development control,Agency staff,21-Jul-22,200055968,G2 Recruitment Solutions,"1,908.75"
Barrow Borough Council,Barrow town hall,Maintenance contracts - TSU,21-Jul-22,200055883,Phosters (FM) Ltd,"1,718.58"
Barrow Borough Council,Current assets - payments in advance,Payment in advance - GF,07-Jul-22,200055677,Penna Plc,"7,808.00"
Barrow Borough Council,The park leisure centre,Consultants' fees,07-Jul-22,200055695,APSE,945
Barrow Borough Council,Information technology,Licences,21-Jul-22,200055892,Vodafone Ltd,"7,032.43"
Barrow Borough Council,Finance Department,Professional fees,21-Jul-22,200055909,Lambert Smith Hampton,"33,000.00"
Barrow Borough Council,Information technology,Data Line Rental,28-Jul-22,200055983,Vodafone Ltd,810.39
Barrow Borough Council,Legal,Subscriptions,14-Jul-22,200055798,The Copyright Licensing Agency Ltd,632.36
Barrow Borough Council,Capitalised Planned Maintenance,Heating,21-Jul-22,200055920,Sure Maintenance,"8,245.16"
Barrow Borough Council,Capitalised Planned Maintenance,Heating,21-Jul-22,200055920,Sure Maintenance,"14,041.69"
Barrow Borough Council,Capitalised Planned Maintenance,Doors and windows,21-Jul-22,200055901,Richmond Joiners & Builders Ltd,"7,343.58"
Barrow Borough Council,Development control,Solicitors fees,07-Jul-22,200055756,Brown Barron Solicitors,"1,160.00"
Barrow Borough Council,Housing Benefits Admin,Conferences and seminars,21-Jul-22,200055884,"Institute of Revenues, Rating and Valuation","1,000.00"
Barrow Borough Council,Customer services,Agency staff,07-Jul-22,200055701,James Andrews Recruitment Solutions,"1,405.26"
Barrow Borough Council,Finance Department,Professional fees,28-Jul-22,200055980,Version 1,"4,109.70"
Barrow Borough Council,HRA Estates,Building cleaning,07-Jul-22,200055775,Associated Cleaning Contractors,833.17
Barrow Borough Council,Coast protection,CAPITA dbs fees,14-Jul-22,200055790,Capita (Real Estate & Infrastructure) Ltd,"1,465.00"
Barrow Borough Council,Development control,Consultants' fees,14-Jul-22,200055794,Steven Abbott Assoc LLP,993.75
Barrow Borough Council,Information technology,Agency staff,07-Jul-22,200055675,VennGroup Recruitment,"1,155.49"
Barrow Borough Council,Cost of collection,Business rates collection,07-Jul-22,200055709,Liberata Uk Ltd,"2,728.66"
Barrow Borough Council,Major works maintenance - HRA,Adaptations,07-Jul-22,200055730,DLP Services (Northern) Ltd,"1,083.74"
Barrow Borough Council,Voids maintenance - HRA,Void repairs,21-Jul-22,200055921,Hughes Brothers,"3,724.54"
Barrow Borough Council,Waste collection,Refuse collection - other works,07-Jul-22,200055706,FCC Environment Services (UK) Ltd,"1,182.39"
Barrow Borough Council,Tenant demand maintenance - HRA,Disrepair,07-Jul-22,200055684,Progression Solicitors,825
Barrow Borough Council,Low Carbon Barrow,Installation of plant and equipment,21-Jul-22,200055880,AMP EV Ltd,"21,462.40"
Barrow Borough Council,Dock museum,Electricity,28-Jul-22,200055999,NPower,"2,869.63"
Barrow Borough Council,Major works maintenance - HRA,Repointing Walney,14-Jul-22,200055871,Baker Mallett,775.62
Barrow Borough Council,Forum 28,Professional fees,21-Jul-22,200055936,Spektrix Ltd,"1,536.13"
Barrow Borough Council,Customer services,Agency staff,28-Jul-22,200055981,James Andrews Recruitment Solutions,"1,069.38"
Barrow Borough Council,Energy Rebate,ADC Postage,21-Jul-22,200055915,Liberata Uk Ltd,"5,809.36"
Barrow Borough Council,Finance Department,Professional fees,21-Jul-22,200055909,Lambert Smith Hampton,"-33,000.00"
Barrow Borough Council,Capitalised Planned Maintenance,Doors and windows,21-Jul-22,200055901,Richmond Joiners & Builders Ltd,"1,643.04"
Barrow Borough Council,Housing repairs control account,Housing repairs invoices,28-Jul-22,200056042,UK Environmental & Asbestos Solutions Ltd,"1,150.00"
Barrow Borough Council,Capitalised Planned Maintenance,Roofs,21-Jul-22,200055957,Ward Contracting Ltd,"1,867.11"
Barrow Borough Council,The park leisure centre,Buildings repairs and maintenance,21-Jul-22,200055944,FTS Fire & Secuirty Ltd,948
Barrow Borough Council,General grants,Other grants,21-Jul-22,200055902,Cumbria CVS,"16,000.00"
Barrow Borough Council,Disabled Facilities Grant,Grants,07-Jul-22,200055707,Airey Property Developments & Adaptations,"3,530.00"
Barrow Borough Council,Sports development and community recreation,Grass pitches,14-Jul-22,200055837,Continental Landscapes Ltd,659.32
Barrow Borough Council,Barrow town hall,Maintenance contracts - TSU,14-Jul-22,200055827,Bill Caulfield Electrical,"2,380.00"
Barrow Borough Council,Forum 28,Electricity,28-Jul-22,200055999,NPower,"10,983.49"
Barrow Borough Council,Low Carbon Barrow,Grants,14-Jul-22,200055819,JL Winder & Co,"4,266.00"
Barrow Borough Council,Streetcare Team,Consultants' fees,07-Jul-22,200055695,APSE,"3,325.85"
Barrow Borough Council,Capitalised Planned Maintenance,Heating,21-Jul-22,200055920,Sure Maintenance,"1,435.11"
Barrow Borough Council,HRA Estates,Tenants content insurance,14-Jul-22,200055807,Thistle Insurance Services Ltd,701.38
Barrow Borough Council,Recycling,Recycling collection and processing,07-Jul-22,200055706,FCC Environment Services (UK) Ltd,"-1,075.00"
Barrow Borough Council,Planning Policy,Agency staff,28-Jul-22,200055975,The Oyster Partnership Ltd,"1,220.70"
Barrow Borough Council,Current liabilities - creditors,Government creditors - DCLG,14-Jul-22,200055803,"Department for Business, Energy & Industrial Strategy","736,366.00"
Barrow Borough Council,Harding Rise Business Centre,Buildings repairs and maintenance,21-Jul-22,200055898,AKD Fire & Security Ltd,985
Barrow Borough Council,Playground,Parks & Playgrounds Inspections & maintenance - contract,14-Jul-22,200055837,Continental Landscapes Ltd,"17,289.40"
Barrow Borough Council,Tenant demand maintenance - HRA,Routine Maintenance,21-Jul-22,200055955,Keith Wilson Elec Con Ltd,930
Barrow Borough Council,Corporate management,Solicitors fees,21-Jul-22,200055952,Brown Barron Solicitors,"1,304.00"
Barrow Borough Council,The park leisure centre,Consultants' fees,07-Jul-22,200055695,APSE,"6,117.30"
Barrow Borough Council,Housing repairs control account,Housing repairs invoices,21-Jul-22,200055921,Hughes Brothers,"3,561.01"
Barrow Borough Council,Disabled Facilities Grant,Grants,21-Jul-22,200055912,Airey Property Developments & Adaptations,"5,180.00"
Barrow Borough Council,Information technology,Software maintenance,28-Jul-22,200056027,Nitro Software Inc,"1,100.00"
Barrow Borough Council,Barrow town hall,Maintenance contracts - TSU,28-Jul-22,200056008,Bill Caulfield Electrical,768.32
Barrow Borough Council,Craven house,Maintenance contracts - TSU,14-Jul-22,200055822,FTS Fire & Secuirty Ltd,"1,700.00"
Barrow Borough Council,Housing repairs control account,Housing repairs invoices,14-Jul-22,200055858,PJ Smith (Garafix) Ltd,935
Barrow Borough Council,The park leisure centre,Water,28-Jul-22,200055973,Water Plus Ltd,-993.57
Barrow Borough Council,Waste collection,Refuse & Recycling Bins Boxes & Bags,14-Jul-22,200055846,FCC Environment Services (UK) Ltd,"1,699.36"
Barrow Borough Council,Housing repairs control account,Housing repairs invoices,28-Jul-22,200056042,UK Environmental & Asbestos Solutions Ltd,"1,125.00"
Barrow Borough Council,The park leisure centre,Professional fees,28-Jul-22,200056017,Barrow Forward Ltd,"75,119.78"
Barrow Borough Council,HRA administration,Equipment purchase,21-Jul-22,200055962,Centric Office Solutions,721
Barrow Borough Council,Shrek - Abbey Musical Society,Recoverable charges,21-Jul-22,200055938,Abbey Musical Society,-862.75
Barrow Borough Council,Legal,Subscriptions,14-Jul-22,200055865,Sefton Council,500
Barrow Borough Council,Capitalised Planned Maintenance,Rewires,21-Jul-22,200055919,Rexel UK Ltd,714.47
Barrow Borough Council,Forum ,Buildings repairs and maintenance,07-Jul-22,200055694,Abbey Environmental Services Ltd,"2,280.00"
Barrow Borough Council,Forum,Rhythm of Dance,01-Jul-22,DD010722,MRC Enterprises Ltd,"8,903.16"
Barrow Borough Council,Homelessness,Homeless support funding,05-Jul-22,DD050722,Cumbria Community Homes,"14,142.30"
Barrow Borough Council,Revenue & Benefits,Postage,06-Jul-22,DD060722,Royal Mail,961.62
Barrow Borough Council,Homelessness,Homeless support funding,08-Jul-22,DD080722,Redacted Information,500
Barrow Borough Council,Corporate Costs,Bank Charges,12-Jul-22,DD120722,HSBC,"1,051.69"
Barrow Borough Council,Corporate Costs,Bank Charges,18-Jul-22,DD180722,HSBC,"1,272.37"
Barrow Borough Council,Technical services,Telephone charges,18-Jul-22,DD180722,BT Plc,"2,261.16"
Barrow Borough Council,Homelessness,Homeless support funding,21-Jul-22,DD210722,Redacted Information,"1,150.00"
Barrow Borough Council,Corporate Costs,Professional Fees,26-Jul-22,DD260722,Allpay,"2,664.99"
